fUST/lending_fUST_20250622
["ID","MTS","AMOUNT","RATE_DAILY","PERIOD"]
[366971819,1750602640656,-1000.0,0.00020735,2]
[366971821,1750602640666,-1000.0,0.00020735,2]
[366971823,1750602640677,-1000.0,0.00020735,2]
[366971825,1750602640687,-25000.0,0.00020735,2]
[366971827,1750602640697,-1000.0,0.00020735,2]
[366971829,1750602640708,-1000.0,0.00020735,2]
[366971831,1750602640719,-1000.0,0.00020735,2]
[366971833,1750602640730,-1000.0,0.00020735,2]
[366971835,1750602640740,-12324.22812225,0.00020735,2]
[366971837,1750602640751,-349.0,0.00020775,2]
[366971839,1750602640761,-1750.456,0.0002079,2]
[366971841,1750602640772,-2000.0,0.000208,2]
[366971843,1750602640781,-2000.0,0.000208,3]
[366971845,1750602640792,-2000.0,0.000208,4]
[366971847,1750602640801,-349.0,0.00020814,2]
[366971849,1750602640812,-500.0,0.0002084,2]
[366971852,1750602640823,-1815.222872,0.00020845,2]
[366971854,1750602640833,-1263.79982598,0.00020847,2]
[366971856,1750602640843,-300.0,0.0002086,2]
[366971858,1750602640853,-753.06122901,0.000209,2]
[366971860,1750602640863,-349.0,0.00020911,2]
[366971862,1750602640873,-355.78519592,0.00020941,2]
[366971864,1750602640883,-14707.83565832,0.0002099,2]
[366971866,1750602640892,-151.0,0.00021,4]
[366971868,1750602640903,-160.0,0.00021,2]
[366971870,1750602640913,-197.999998,0.00021,2]
[366971872,1750602640923,-5124.80918906,0.00021,2]
[366971874,1750602640934,-201.16812229,0.00021,2]
[366971876,1750602640944,-652.52411753,0.0002101,2]
[366971878,1750602640955,-349.0,0.00021018,2]
[366971880,1750602640973,-846.39664074,0.00021043,10]
[366971882,1750602640993,-524.02598587,0.00021043,10]
[366971884,1750602641009,-12551.52821599,0.00021043,10]
[366971887,1750602641020,-213.59462818,0.00021043,10]
[366971889,1750602641030,-500.0,0.00021064,2]
[366971891,1750602641040,-151.0,0.000211,4]
[366971893,1750602641050,-644.39537391,0.00021114,2]
[366971895,1750602641060,-805.887,0.00021124,2]
[366971897,1750602641074,-168.0,0.0002113,2]
[366971899,1750602641085,-160.0,0.00021141,2]
[366971901,1750602641095,-160.0,0.00021179,2]
[366971903,1750602641106,-160.0,0.00021179,2]
[366971905,1750602641116,-213.59462818,0.00021179,2]
[366971907,1750602641126,-160.0,0.00021179,2]
[366971909,1750602641137,-160.0,0.00021179,2]
[366971911,1750602641147,-230.14598372,0.00021179,2]
[366971934,1750602641158,-12551.52821599,0.00021179,2]
[366971938,1750602641399,-836.56272071,0.00021179,2]
[366971940,1750602641410,-160.0,0.00021179,2]
[366971943,1750602641420,-160.0,0.00021179,2]
[366971945,1750602641430,-160.0,0.00021179,2]
[366971946,1750602641439,-425.01221603,0.00021179,2]
[366971949,1750602641449,-846.39664074,0.00021179,2]
[366971951,1750602641459,-532.36999997,0.00021196,2]
[366971953,1750602641469,-151.0,0.000212,3]
[366971955,1750602641478,-1000.0,0.000212,5]
[366971957,1750602641488,-318.0,0.00021247,2]
[366971959,1750602641497,-160.0,0.00021262,2]
[366971961,1750602641506,-5000.0,0.00021283,2]
[366971963,1750602641515,-25000.0,0.00021283,2]
[366971965,1750602641526,-267.67,0.00021299,2]
[366971967,1750602641535,-5532.76,0.000213,2]
[366971969,1750602641545,-151.0,0.000213,4]
[366971971,1750602641561,-151.0,0.000213,3]
[366971973,1750602641573,-10064.33921596,0.000213,5]
[366971975,1750602641583,-10064.33921571,0.000213,5]
[366971977,1750602641593,-10064.33921571,0.000213,5]
[366971979,1750602641604,-151.0,0.000213,3]
[366971981,1750602641614,-10064.33921571,0.00021314,5]
[366971983,1750602641623,-349.0,0.00021327,2]
[366971985,1750602641633,-34320.07467786,0.00021372,2]
[366971987,1750602641644,-759.41099811,0.00021385,2]
[366971989,1750602641654,-151.0,0.000214,4]
[366971991,1750602641667,-151.0,0.000214,4]
[366971993,1750602641678,-151.0,0.000214,3]
[366971995,1750602641688,-151.0,0.000214,3]
[366971998,1750602641697,-151.0,0.000214,4]
[366972000,1750602641707,-10064.33921571,0.00021452,5]
[366972002,1750602641716,-356.0,0.0002147,2]
[366972004,1750602641726,-2213.685499,0.00021478,4]
[366972006,1750602641736,-151.0,0.000215,4]
[366972008,1750602641747,-151.0,0.000215,4]
[366972010,1750602641757,-10274.01,0.000215,2]
[366972012,1750602641767,-151.0,0.000215,4]
[366972014,1750602641776,-151.0,0.000215,3]
[366972016,1750602641787,-151.0,0.000215,3]
[366972018,1750602641796,-10064.33921571,0.0002159,5]
[366972020,1750602641807,-384.33775527,0.00021596,2]
[366972022,1750602641825,-151.0,0.000216,3]
[366972024,1750602641835,-151.0,0.000216,4]
[366972026,1750602641845,-151.0,0.000216,3]
[366972029,1750602641855,-151.0,0.000216,4]
[366972030,1750602641865,-151.0,0.000216,3]
[366972032,1750602641875,-34320.07467785,0.0002165,2]
[366972035,1750602641885,-173.98686536,0.00021679,2]
[366972037,1750602641895,-384.33775528,0.00021688,2]
[366972039,1750602641905,-151.0,0.000217,3]
[366972041,1750602641914,-151.0,0.000217,3]
[366972043,1750602641925,-151.0,0.000217,4]
[366972045,1750602641935,-151.0,0.000217,3]
[366972047,1750602641946,-1196.3175234,0.000217,21]
[366972049,1750602641955,-151.0,0.000217,4]
[366972051,1750602641965,-151.0,0.000217,4]
[366972053,1750602641975,-306.0,0.00021718,2]
[366972055,1750602641985,-11317.67079741,0.00021722,2]
[366972057,1750602641995,-10064.33921571,0.00021728,5]
[366972059,1750602642005,-420.0,0.00021731,2]
[366972061,1750602642016,-11317.67079741,0.00021746,2]
[366972063,1750602642025,-579.0,0.00021746,2]
[366972065,1750602642035,-11317.67079741,0.0002177,2]
[366972067,1750602642044,-420.0,0.00021777,2]
[366972069,1750602642054,-420.0,0.00021777,2]
[366972071,1750602642064,-420.0,0.00021777,2]
[366972073,1750602642076,-11317.67079741,0.00021793,2]
[366972075,1750602642088,-1350.06399664,0.00021797,2]
[366972077,1750602642097,-151.0,0.000218,4]
[366972079,1750602642107,-151.0,0.000218,4]
[366972081,1750602642117,-151.0,0.000218,3]
[366972083,1750602642127,-151.0,0.000218,3]
[366972085,1750602642137,-1000.0,0.000218,6]
[366972087,1750602642147,-151.0,0.000218,4]
[366972089,1750602642158,-11317.67079741,0.00021817,2]
[366972091,1750602642167,-5932.73636991,0.00021817,2]
[366972093,1750602642177,-25000.0,0.00021831,2]
[366972095,1750602642187,-532.36999997,0.00021837,2]
[366972098,1750602642197,-10064.33921571,0.00021866,6]
[366972099,1750602642207,-1680.0,0.00021881,2]
[366972102,1750602642217,-151.0,0.000219,4]
[366972104,1750602642226,-151.0,0.000219,3]
[366972105,1750602642236,-238576.41532945,0.000219,2]
[366972107,1750602642245,-17098.30054772,0.00021917,2]
[366972109,1750602642255,-29634.65448529,0.00021917,2]
[366972111,1750602642266,-151.0,0.00021917,2]
[366972114,1750602642275,-151.0,0.00021917,2]
[366972116,1750602642285,-151.0,0.00021917,2]
[366972117,1750602642295,-151.0,0.00021917,2]
[366972120,1750602642306,-151.0,0.00021917,2]
[366972122,1750602642315,-151.0,0.00021917,2]
[366972124,1750602642329,-151.0,0.00021917,2]
[366972126,1750602642339,-151.0,0.00021917,2]
[366972128,1750602642349,-151.0,0.00021917,2]
[366972130,1750602642358,-151.0,0.00021917,2]
[366972132,1750602642368,-187.5233913,0.00021917,2]
[366972135,1750602642378,-514.45,0.00021917,3]
[366972137,1750602642388,-514.45,0.00021917,3]
[366972139,1750602642397,-514.45,0.00021917,3]
[366972141,1750602642407,-514.45,0.00021917,3]
[366972143,1750602642416,-514.45,0.00021917,3]
[366972145,1750602642426,-514.45,0.00021917,3]
[366972147,1750602642435,-514.45,0.00021917,3]
[366972149,1750602642444,-514.45,0.00021917,3]
[366972151,1750602642454,-514.45,0.00021917,3]
[366972153,1750602642464,-514.45,0.00021917,3]
[366972155,1750602642474,-514.45,0.00021917,3]
[366972157,1750602642483,-514.45,0.00021917,3]
[366972159,1750602642493,-514.45,0.00021917,3]
[366972161,1750602642503,-514.45,0.00021917,3]
[366972163,1750602642513,-514.45,0.00021917,3]
[366972165,1750602642523,-460.0,0.00021917,3]
[366972167,1750602642533,-460.0,0.00021917,3]
[366972169,1750602642543,-460.0,0.00021917,3]
[366972171,1750602642554,-460.0,0.00021917,3]
[366972173,1750602642564,-460.0,0.00021917,3]
[366972175,1750602642579,-460.0,0.00021917,3]
[366972177,1750602642589,-307.92386155,0.00021917,3]
[366972179,1750602642599,-460.0,0.00021917,3]
[366972180,1750602642610,-460.0,0.00021917,3]
[366972181,1750602642620,-460.0,0.00021917,3]
[366972182,1750602642631,-460.0,0.00021917,3]
[366972183,1750602642642,-244.18627963,0.00021917,3]
[366972184,1750602642653,-589.08015778,0.00021917,3]
[366972185,1750602642662,-460.0,0.00021917,3]
[366972186,1750602642672,-460.0,0.00021917,3]
[366972187,1750602642682,-460.0,0.00021917,3]
[366972188,1750602642692,-499.97912697,0.00021917,3]
[366972189,1750602642702,-460.0,0.00021917,3]
[366972190,1750602642712,-414.79214721,0.00021917,3]
[366972191,1750602642722,-257.25139774,0.00021917,3]
[366972192,1750602642732,-460.0,0.00021917,3]
[366972193,1750602642742,-460.0,0.00021917,3]
[366972194,1750602642752,-460.0,0.00021917,3]
[366972195,1750602642762,-460.0,0.00021917,3]
[366972196,1750602642772,-460.0,0.00021917,3]
[366972197,1750602642782,-460.0,0.00021917,3]
[366972198,1750602642792,-460.0,0.00021917,3]
[366972199,1750602642802,-460.0,0.00021917,3]
[366972200,1750602642812,-460.0,0.00021917,3]
[366972201,1750602642825,-460.0,0.00021917,3]
[366972202,1750602642835,-460.0,0.00021917,3]
[366972203,1750602642845,-460.0,0.00021917,3]
[366972204,1750602642855,-460.0,0.00021917,3]
[366972205,1750602642864,-460.0,0.00021917,3]
[366972206,1750602642874,-244.85281365,0.00021917,3]
[366972207,1750602642884,-460.0,0.00021917,3]
[366972208,1750602642894,-460.0,0.00021917,3]
[366972209,1750602642903,-460.0,0.00021917,3]
[366972210,1750602642913,-592.80352508,0.00021917,3]
[366972211,1750602642922,-460.0,0.00021917,3]
[366972212,1750602642932,-460.0,0.00021917,3]
[366972213,1750602642941,-460.0,0.00021917,3]
[366972214,1750602642951,-460.0,0.00021917,3]
[366972215,1750602642961,-460.0,0.00021917,3]
[366972216,1750602642970,-460.0,0.00021917,3]
[366972217,1750602642980,-460.0,0.00021917,3]
[366972218,1750602642989,-460.0,0.00021917,3]
[366972219,1750602642999,-460.0,0.00021917,3]
[366972220,1750602643008,-460.0,0.00021917,3]
[366972221,1750602643018,-460.0,0.00021917,3]
[366972222,1750602643028,-460.0,0.00021917,3]
[366972223,1750602643037,-460.0,0.00021917,3]
[366972224,1750602643048,-460.0,0.00021917,3]
[366972225,1750602643058,-460.0,0.00021917,3]
[366972226,1750602643068,-460.0,0.00021917,3]
[366972227,1750602643081,-341.5272758,0.00021917,3]
[366972228,1750602643091,-460.0,0.00021917,3]
[366972229,1750602643101,-460.0,0.00021917,3]
[366972230,1750602643111,-460.0,0.00021917,3]
[366972231,1750602643120,-460.0,0.00021917,3]
[366972232,1750602643130,-460.0,0.00021917,3]
[366972233,1750602643141,-460.0,0.00021917,3]
[366972234,1750602643151,-460.0,0.00021917,3]
[366972235,1750602643161,-389.70492748,0.00021917,3]
[366972236,1750602643170,-460.0,0.00021917,3]
[366972237,1750602643180,-460.0,0.00021917,3]
[366972238,1750602643190,-482.29367445,0.00021917,3]
[366972239,1750602643200,-460.0,0.00021917,3]
[366972240,1750602643211,-460.0,0.00021917,3]
[366972241,1750602643221,-460.0,0.00021917,3]
[366972242,1750602643231,-460.0,0.00021917,3]
[366972244,1750602643241,-460.0,0.00021917,3]
[366972246,1750602643251,-460.0,0.00021917,3]
[366972247,1750602643261,-460.0,0.00021917,3]
[366972248,1750602643271,-460.0,0.00021917,3]
[366972249,1750602643281,-460.0,0.00021917,3]
[366972250,1750602643291,-460.0,0.00021917,3]
[366972252,1750602643301,-384.66117986,0.00021917,3]
[366972254,1750602643310,-460.0,0.00021917,3]
[366972256,1750602643320,-460.0,0.00021917,3]
[366972258,1750602643332,-460.0,0.00021917,3]
[366972259,1750602643341,-460.0,0.00021917,3]
[366972263,1750602643351,-460.0,0.00021917,3]
[366972265,1750602643361,-390.0,0.00021917,3]
[366972267,1750602643371,-151.0,0.00021917,2]
[366972269,1750602643381,-151.0,0.00021917,2]
[366972271,1750602643391,-151.0,0.00021917,2]
[366972273,1750602643401,-151.0,0.00021917,2]
[366972275,1750602643412,-151.0,0.00021917,2]
[366972277,1750602643422,-151.0,0.00021917,2]
[366972280,1750602643432,-155.933279,0.00021917,2]
[366972282,1750602643442,-460.0,0.00021917,3]
[366972284,1750602643452,-460.0,0.00021917,3]
[366972286,1750602643463,-276.04957897,0.00021917,3]
[366972288,1750602643473,-460.0,0.00021917,3]
[366972290,1750602643483,-460.0,0.00021917,3]
[366972293,1750602643493,-460.0,0.00021917,3]
[366972296,1750602643502,-460.0,0.00021917,3]
[366972299,1750602643512,-460.0,0.00021917,3]
[366972301,1750602643522,-420.0,0.00021917,3]
[366972303,1750602643532,-460.0,0.00021917,3]
[366972305,1750602643542,-460.0,0.00021917,3]
[366972307,1750602643554,-460.0,0.00021917,3]
[366972309,1750602643566,-460.0,0.00021917,3]
[366972311,1750602643578,-460.0,0.00021917,3]
[366972313,1750602643588,-460.0,0.00021917,3]
[366972315,1750602643600,-460.0,0.00021917,3]
[366972317,1750602643609,-460.0,0.00021917,3]
[366972318,1750602643619,-460.0,0.00021917,3]
[366972319,1750602643630,-159.21911204,0.00021917,3]
[366972320,1750602643639,-500.0,0.00021917,3]
[366972321,1750602643649,-500.0,0.00021917,3]
[366972323,1750602643659,-460.0,0.00021917,3]
[366972324,1750602643670,-460.0,0.00021917,3]
[366972325,1750602643679,-440.0,0.00021917,3]
[366972326,1750602643689,-279.406313,0.00021917,2]
[366972327,1750602643699,-460.0,0.00021917,3]
[366972328,1750602643709,-382.23437836,0.00021917,3]
[366972329,1750602643719,-460.0,0.00021917,3]
[366972330,1750602643728,-460.0,0.00021917,3]
[366972331,1750602643738,-460.0,0.00021917,3]
[366972332,1750602643748,-460.0,0.00021917,3]
[366972333,1750602643757,-544.808366,0.00021917,2]
[366972334,1750602643767,-460.0,0.00021917,3]
[366972335,1750602643777,-460.0,0.00021917,3]
[366972336,1750602643787,-460.0,0.00021917,3]
[366972337,1750602643796,-544.808366,0.00021917,2]
[366972338,1750602643806,-544.808366,0.00021917,2]
[366972339,1750602643816,-544.808366,0.00021917,2]
[366972340,1750602643828,-544.808366,0.00021917,2]
[366972341,1750602643837,-151.0,0.00021917,2]
[366972342,1750602643847,-460.0,0.00021917,3]
[366972343,1750602643902,-544.808366,0.00021917,2]
[366972344,1750602643912,-151.0,0.00021917,2]
[366972345,1750602643921,-460.0,0.00021917,3]
[366972346,1750602643931,-544.808366,0.00021917,2]
[366972347,1750602643940,-151.0,0.00021917,2]
[366972348,1750602643949,-460.0,0.00021917,3]
[366972349,1750602643959,-544.808366,0.00021917,2]
[366972350,1750602643968,-460.0,0.00021917,3]
[366972351,1750602643978,-460.0,0.00021917,3]
[366972352,1750602643998,-151.0,0.00021917,2]
[366972353,1750602644009,-460.0,0.00021917,3]
[366972354,1750602644019,-544.808366,0.00021917,2]
[366972355,1750602644029,-460.0,0.00021917,3]
[366972356,1750602644039,-151.0,0.00021917,2]
[366972357,1750602644049,-460.0,0.00021917,3]
[366972358,1750602644059,-460.0,0.00021917,3]
[366972359,1750602644068,-460.0,0.00021917,3]
[366972360,1750602644080,-460.0,0.00021917,3]
[366972361,1750602644090,-151.0,0.00021917,2]
[366972362,1750602644100,-460.0,0.00021917,3]
[366972363,1750602644110,-544.808366,0.00021917,2]
[366972364,1750602644120,-151.0,0.00021917,2]
[366972365,1750602644130,-460.0,0.00021917,3]
[366972366,1750602644140,-460.0,0.00021917,3]
[366972367,1750602644149,-460.0,0.00021917,3]
[366972368,1750602644159,-151.0,0.00021917,2]
[366972369,1750602644169,-544.808366,0.00021917,2]
[366972370,1750602644179,-460.0,0.00021917,3]
[366972371,1750602644190,-460.0,0.00021917,3]
[366972372,1750602644200,-460.0,0.00021917,3]
[366972373,1750602644210,-544.808366,0.00021917,2]
[366972374,1750602644220,-460.0,0.00021917,3]
[366972375,1750602644231,-460.0,0.00021917,3]
[366972376,1750602644241,-544.808366,0.00021917,2]
[366972377,1750602644251,-460.0,0.00021917,3]
[366972378,1750602644261,-460.0,0.00021917,3]
[366972379,1750602644271,-544.808366,0.00021917,2]
[366972380,1750602644281,-544.808366,0.00021917,2]
[366972381,1750602644291,-544.808366,0.00021917,2]
[366972383,1750602644302,-544.808366,0.00021917,2]
[366972385,1750602644311,-544.808366,0.00021917,2]
[366972386,1750602644323,-544.808366,0.00021917,2]
[366972387,1750602644333,-544.808365,0.00021917,2]
[366972388,1750602644343,-402.39246885,0.00021917,3]
[366972389,1750602644353,-400.90108975,0.00021917,3]
[366972390,1750602644363,-460.0,0.00021917,3]
[366972391,1750602644373,-460.0,0.00021917,3]
[366972392,1750602644383,-460.0,0.00021917,3]
[366972393,1750602644393,-460.0,0.00021917,3]
[366972394,1750602644402,-355.39215428,0.00021917,3]
[366972395,1750602644412,-460.0,0.00021917,3]
[366972396,1750602644421,-566.14715305,0.00021917,3]
[366972397,1750602644431,-162.099032,0.00021917,2]
[366972398,1750602644441,-162.099032,0.00021917,2]
[366972399,1750602644451,-151.0,0.00021917,2]
[366972400,1750602644462,-162.099032,0.00021917,2]
[366972401,1750602644471,-151.0,0.00021917,2]
[366972402,1750602644481,-162.099032,0.00021917,2]
[366972403,1750602644490,-151.0,0.00021917,2]
[366972404,1750602644500,-162.099032,0.00021917,2]
[366972405,1750602644509,-151.0,0.00021917,2]
[366972406,1750602644519,-162.099032,0.00021917,2]
[366972407,1750602644529,-151.0,0.00021917,2]
[366972408,1750602644539,-162.099032,0.00021917,2]
[366972409,1750602644550,-151.0,0.00021917,2]
[366972410,1750602644559,-162.099032,0.00021917,2]
[366972411,1750602644569,-151.0,0.00021917,2]
[366972412,1750602644582,-162.099032,0.00021917,2]
[366972413,1750602644592,-151.0,0.00021917,2]
[366972414,1750602644601,-460.0,0.00021917,3]
[366972415,1750602644611,-162.099032,0.00021917,2]
[366972416,1750602644625,-151.0,0.00021917,2]
[366972417,1750602644635,-241.666476,0.00021917,2]
[366972418,1750602644646,-460.0,0.00021917,3]
[366972419,1750602644656,-151.0,0.00021917,2]
[366972420,1750602644666,-162.099032,0.00021917,2]
[366972421,1750602644676,-538.80578943,0.00021917,3]
[366972422,1750602644685,-209.31648,0.00021917,2]
[366972423,1750602644695,-162.099032,0.00021917,2]
[366972424,1750602644705,-162.099032,0.00021917,2]
[366972425,1750602644714,-162.099032,0.00021917,2]
[366972426,1750602644724,-162.099032,0.00021917,2]
[366972427,1750602644734,-162.099032,0.00021917,2]
[366972428,1750602644744,-162.099032,0.00021917,2]
[366972429,1750602644754,-162.099032,0.00021917,2]
[366972430,1750602644763,-162.099032,0.00021917,2]
[366972431,1750602644773,-162.099023,0.00021917,2]
[366972432,1750602644782,-151.0,0.00021917,2]
[366972433,1750602644792,-166.025028,0.00021917,2]
[366972434,1750602644802,-206.6,0.00021917,2]
[366972435,1750602644811,-206.6,0.00021917,2]
[366972436,1750602644825,-206.6,0.00021917,2]
[366972437,1750602644834,-460.0,0.00021917,3]
[366972438,1750602644844,-206.6,0.00021917,2]
[366972439,1750602644854,-430.33692148,0.00021917,3]
[366972440,1750602644863,-206.6,0.00021917,2]
[366972441,1750602644873,-206.6,0.00021917,2]
[366972442,1750602644883,-206.6,0.00021917,2]
[366972443,1750602644892,-206.6,0.00021917,2]
[366972444,1750602644902,-206.6,0.00021917,2]
[366972445,1750602644911,-206.6,0.00021917,2]
[366972446,1750602644921,-206.6,0.00021917,2]
[366972447,1750602644930,-460.0,0.00021917,3]
[366972448,1750602644940,-460.0,0.00021917,3]
[366972449,1750602644949,-460.0,0.00021917,3]
[366972450,1750602644958,-206.6,0.00021917,2]
[366972451,1750602644968,-460.0,0.00021917,3]
[366972452,1750602644977,-206.6,0.00021917,2]
[366972453,1750602644987,-460.0,0.00021917,3]
[366972454,1750602644997,-460.0,0.00021917,3]
[366972455,1750602645006,-206.6,0.00021917,2]
[366972456,1750602645016,-206.6,0.00021917,2]
[366972457,1750602645026,-460.0,0.00021917,3]
[366972458,1750602645035,-206.6,0.00021917,2]
[366972459,1750602645045,-460.0,0.00021917,3]
[366972460,1750602645055,-460.0,0.00021917,3]
[366972461,1750602645065,-206.6,0.00021917,2]
[366972462,1750602645079,-460.0,0.00021917,3]
[366972463,1750602645092,-206.6,0.00021917,2]
[366972464,1750602645102,-460.0,0.00021917,3]
[366972465,1750602645112,-206.6,0.00021917,2]
[366972466,1750602645122,-460.0,0.00021917,3]
[366972467,1750602645133,-206.6,0.00021917,2]
[366972468,1750602645143,-460.0,0.00021917,3]
[366972469,1750602645153,-460.0,0.00021917,3]
[366972470,1750602645163,-460.0,0.00021917,3]
[366972471,1750602645173,-460.0,0.00021917,3]
[366972472,1750602645184,-460.0,0.00021917,3]
[366972473,1750602645194,-589.61606401,0.00021917,3]
[366972474,1750602645203,-592.99235041,0.00021917,2]
[366972475,1750602645212,-460.0,0.00021917,3]
[366972476,1750602645222,-460.0,0.00021917,3]
[366972477,1750602645232,-440.0,0.00021917,3]
[366972478,1750602645242,-460.0,0.00021917,3]
[366972479,1750602645252,-460.0,0.00021917,3]
[366972480,1750602645262,-460.0,0.00021917,3]
[366972481,1750602645272,-460.0,0.00021917,3]
[366972482,1750602645282,-460.0,0.00021917,3]
[366972483,1750602645292,-460.0,0.00021917,3]
[366972484,1750602645301,-460.0,0.00021917,3]
[366972485,1750602645311,-293.7875794,0.00021917,3]
[366972487,1750602645321,-151.0,0.00021917,2]
[366972488,1750602645335,-151.0,0.00021917,2]
[366972490,1750602645345,-151.0,0.00021917,2]
[366972492,1750602645355,-151.0,0.00021917,2]
[366972494,1750602645364,-231.277197,0.00021917,2]
[366972495,1750602645374,-231.277197,0.00021917,2]
[366972497,1750602645384,-151.0,0.00021917,2]
[366972498,1750602645393,-151.0,0.00021917,2]
[366972499,1750602645403,-231.277197,0.00021917,2]
[366972500,1750602645412,-281.276653,0.00021917,2]
[366972501,1750602645422,-231.277197,0.00021917,2]
[366972502,1750602645432,-231.277197,0.00021917,2]
[366972503,1750602645441,-231.277197,0.00021917,2]
[366972504,1750602645451,-231.277197,0.00021917,2]
[366972506,1750602645461,-231.277197,0.00021917,2]
[366972508,1750602645470,-231.277197,0.00021917,2]
[366972510,1750602645480,-231.277197,0.00021917,2]
[366972512,1750602645491,-231.277197,0.00021917,2]
[366972513,1750602645501,-231.277197,0.00021917,2]
[366972516,1750602645511,-231.277197,0.00021917,2]
[366972518,1750602645521,-231.277197,0.00021917,2]
[366972520,1750602645530,-231.277197,0.00021917,2]
[366972522,1750602645540,-231.277197,0.00021917,2]
[366972524,1750602645550,-231.277197,0.00021917,2]
[366972526,1750602645561,-231.277197,0.00021917,2]
[366972527,1750602645579,-231.277197,0.00021917,2]
[366972528,1750602645590,-283.29197599,0.00021917,3]
[366972529,1750602645599,-231.277202,0.00021917,2]
[366972530,1750602645609,-242.161963,0.00021917,2]
[366972531,1750602645619,-242.161963,0.00021917,2]
[366972532,1750602645629,-242.161963,0.00021917,2]
[366972533,1750602645639,-242.161963,0.00021917,2]
[366972534,1750602645649,-242.161963,0.00021917,2]
[366972535,1750602645661,-242.161963,0.00021917,2]
[366972536,1750602645670,-242.161963,0.00021917,2]
[366972537,1750602645680,-242.161963,0.00021917,2]
[366972538,1750602645690,-242.161963,0.00021917,2]
[366972539,1750602645700,-242.161963,0.00021917,2]
[366972540,1750602645712,-242.161963,0.00021917,2]
[366972541,1750602645721,-242.161963,0.00021917,2]
[366972542,1750602645730,-242.161963,0.00021917,2]
[366972543,1750602645741,-242.161963,0.00021917,2]
[366972544,1750602645750,-267.36086693,0.00021917,3]
[366972545,1750602645760,-460.0,0.00021917,3]
[366972546,1750602645770,-460.0,0.00021917,3]
[366972547,1750602645779,-460.0,0.00021917,3]
[366972548,1750602645789,-460.0,0.00021917,3]
[366972549,1750602645798,-463.56566615,0.00021917,3]
[366972550,1750602645807,-151.0,0.00021917,2]
[366972551,1750602645816,-151.0,0.00021917,2]
[366972552,1750602645830,-151.0,0.00021917,2]
[366972553,1750602645840,-151.0,0.00021917,2]
[366972554,1750602645850,-151.0,0.00021917,2]
[366972555,1750602645859,-229.347171,0.00021917,2]
[366972556,1750602645869,-151.0,0.00021917,2]
[366972557,1750602645879,-229.347171,0.00021917,2]
[366972558,1750602645888,-229.347171,0.00021917,2]
[366972559,1750602645898,-151.0,0.00021917,2]
[366972560,1750602645908,-229.347171,0.00021917,2]
[366972561,1750602645919,-229.347171,0.00021917,2]
[366972562,1750602645928,-229.347171,0.00021917,2]
[366972563,1750602645939,-151.0,0.00021917,2]
[366972564,1750602645949,-229.347171,0.00021917,2]
[366972565,1750602645959,-229.347171,0.00021917,2]
[366972566,1750602645970,-151.0,0.00021917,2]
[366972567,1750602645981,-229.347171,0.00021917,2]
[366972568,1750602645991,-229.347171,0.00021917,2]
[366972569,1750602646001,-151.0,0.00021917,2]
[366972570,1750602646021,-229.347171,0.00021917,2]